bitfinex/quotes_SOLUSD_20250317
["timestamp","ask_amount","ask_price","bid_price","bid_amount"]
[1742237511849,38.91732463,130.46,130.41,31.25202463]
[1742237512549,31.25202463,130.46,130.41,31.25202463]
[1742237513138,7.6647,130.47,130.41,31.25202463]
[1742237513331,31.25202463,130.46,130.41,31.25202463]
[1742237513946,31.25202463,130.45,130.4,40.02042463]
[1742237514123,31.25202463,130.44,130.39,45.07362463]
[1742237514526,31.25202463,130.43,130.38,26.31924886]
[1742237514729,31.25202463,130.43,130.38,57.57127349]
[1742237515629,31.25202463,130.44,130.39,31.25202463]
[1742237516650,31.25202463,130.44,130.39,38.92082463]
[1742237517752,31.25202463,130.45,130.4,49.90167349]
[1742237517927,0.03,130.44,130.4,49.90167349]
[1742237518853,0.03,130.44,130.4,57.56977349]
[1742237519070,0.03,130.44,130.41,31.25202463]
[1742237519251,0.03,130.44,130.41,19.49587942]
[1742237519832,0.03,130.44,130.42,19.49587942]
[1742237520034,0.03,130.44,130.43,19.49587942]
[1742237520251,0.03,130.44,130.43,38.14552828]
[1742237521058,0.03,130.44,130.43,45.81242828]
[1742237522133,0.03,130.48,130.44,18.64964886]
[1742237522335,0.03,130.48,130.47,19.49587942]
[1742237522534,0.03,130.52,130.48,0.28432314]
[1742237522739,2.73780031,130.57,130.53,7.8681]
[1742237522953,2.73780031,130.57,130.56,45.80482828]
[1742237523151,2.73780031,130.57,130.56,195.51749182]
[1742237523336,2.73780031,130.57,130.56,202.69749182]
[1742237523549,3.1e-07,130.57,130.56,202.69749182]
[1742237524347,3.1e-07,130.58,130.57,18.64964886]
[1742237524551,0.03,130.59,130.57,51.28921755]
[1742237524749,0.03,130.59,130.58,49.75819182]
[1742237524945,0.03,130.59,130.58,56.93819182]
[1742237525348,0.03,130.59,130.58,368.93819182]
[1742237527266,0.03,130.59,130.58,499.85819182]
[1742237527440,0.03,130.59,130.58,507.03819182]
[1742237527766,0.03,130.59,130.58,499.85819182]
[1742237528158,0.03,130.59,130.58,195.01819182]
[1742237529348,0.03,130.59,130.58,169.20854296]
[1742237529552,0.03,130.59,130.56,18.64964886]
[1742237529758,0.03,130.59,130.58,31.10854296]
[1742237529960,0.03,130.59,130.58,187.85819182]
[1742237530346,0.03,130.59,130.58,49.75819182]
[1742237530759,0.03,130.59,130.58,56.93819182]
[1742237531139,0.03,130.59,130.58,368.93819182]
[1742237531343,0.04995,130.6,130.59,18.64964886]
[1742237531544,0.04995,130.6,130.59,49.75819182]
[1742237532039,0.04995,130.6,130.59,18.64964886]
[1742237532267,0.04995,130.6,130.59,56.93819182]
[1742237532859,2.26583179,130.65,130.6,18.64964886]
[1742237533159,2.26583179,130.65,130.64,31.10854296]
[1742237533368,2.26583179,130.65,130.64,38.30854296]
[1742237533567,2.26583179,130.65,130.64,195.05819182]
[1742237534567,2.26583179,130.65,130.64,195.34251496]
[1742237534867,0.03,130.73,130.65,18.933972]
[1742237535050,0.03,130.73,130.69,31.10854296]
[1742237535253,0.03,130.73,130.7,7.22]
[1742237535447,31.10854296,130.72,130.66,18.64964886]
[1742237535653,31.10854296,130.72,130.68,7.22]
[1742237536053,31.10854296,130.69,130.65,7.22]
[1742237536267,51.10854296,130.67,130.62,145.32]
[1742237536467,51.10854296,130.67,130.62,7.22]
[1742237536650,6.0781,130.7,130.64,31.10854296]
[1742237536972,31.10854296,130.69,130.64,31.10854296]
[1742237537158,31.10854296,130.69,130.65,18.64964886]
[1742237537361,38.76044296,130.69,130.64,31.10854296]
[1742237537560,38.76044296,130.69,130.63,31.10854296]
[1742237538374,31.10854296,130.68,130.63,18.64964886]
[1742237538582,31.10854296,130.68,130.63,49.75819182]
[1742237539279,38.76074296,130.68,130.63,49.75819182]
[1742237539494,7.6522,130.68,130.64,31.10854296]
[1742237539976,38.76074296,130.68,130.63,31.10854296]
[1742237540558,7.6505,130.71,130.65,49.75819182]
[1742237540759,31.10854296,130.7,130.65,49.75819182]
[1742237540968,31.10854296,130.7,130.65,18.64964886]
[1742237541480,38.75974296,130.7,130.65,18.64964886]
[1742237542054,31.10854296,130.69,130.65,18.64964886]
[1742237543361,38.78974296,130.7,130.65,18.64964886]
[1742237544278,31.10854296,130.69,130.65,18.64964886]
[1742237544578,26.8089,130.7,130.63,49.82119182]
[1742237544879,31.10854296,130.69,130.63,49.82119182]
[1742237545085,31.10854296,130.67,130.63,25.91264886]
[1742237545290,31.10854296,130.66,130.63,0.063]
[1742237545584,7.654,130.65,130.63,0.063]
[1742237545782,31.10854296,130.64,130.63,0.063]
[1742237546268,38.76254296,130.65,130.63,0.063]
[1742237547079,31.10854296,130.64,130.63,0.063]
[1742237547290,7.654,130.65,130.63,0.063]
[1742237547476,38.76254296,130.65,130.63,0.063]
[1742237547784,38.76134296,130.67,130.63,0.063]
[1742237547973,38.76134296,130.67,130.63,31.17154296]
[1742237547974,7.6528,130.67,130.63,31.17154296]
[1742237548581,31.10854296,130.69,130.65,18.64964886]
[1742237548880,31.13854296,130.7,130.65,49.75819182]
[1742237549077,0.03,130.7,130.65,49.75819182]
[1742237549269,0.03,130.7,130.67,18.64964886]
[1742237549470,0.03,130.7,130.67,49.75819182]
[1742237549778,0.03,130.7,130.67,18.64964886]
[1742237552089,31.13854296,130.7,130.66,18.64964886]
[1742237552260,0.03,130.7,130.66,18.64964886]
[1742237552460,31.13854296,130.7,130.66,18.64964886]
[1742237552680,31.10854296,130.69,130.64,202.5]
[1742237552885,31.10854296,130.68,130.64,202.5]
[1742237553266,31.10854296,130.69,130.64,202.5]
[1742237553871,38.76044296,130.69,130.64,202.5]
[1742237554169,31.10854296,130.68,130.64,202.5]
[1742237554770,31.13854296,130.68,130.64,202.5]
[1742237554970,31.13854296,130.68,130.63,49.82119182]
[1742237555366,31.10854296,130.67,130.63,18.71264886]
[1742237555576,31.10854296,130.66,130.63,0.063]
[1742237555776,31.10854296,130.65,130.63,0.063]
[1742237555969,31.10854296,130.64,130.63,0.063]
[1742237556175,38.28854296,130.66,130.63,0.063]
[1742237556611,31.10854296,130.66,130.63,0.063]
[1742237556781,38.76214296,130.66,130.63,0.063]
[1742237557687,31.10854296,130.65,130.63,0.063]
[1742237557988,31.10854296,130.64,130.63,0.063]
[1742237558293,31.10854296,130.66,130.63,0.063]
[1742237559273,38.76194296,130.66,130.63,0.063]
[1742237559674,0.03,130.68,130.65,31.10854296]
[1742237559882,0.03,130.68,130.67,49.75819182]
[1742237560097,0.03,130.68,130.67,187.85819182]
[1742237561496,0.03,130.68,130.67,195.51099182]
[1742237561994,0.03,130.7,130.67,138.1]
[1742237562391,0.03,130.7,130.67,7.6528]
[1742237564495,0.03,130.7,130.66,31.10854296]
[1742237564688,31.13854296,130.7,130.65,38.76234296]
[1742237564890,31.13854296,130.7,130.64,184.06294296]
[1742237565197,31.13854296,130.7,130.64,38.76294296]
[1742237565407,31.10854296,130.69,130.64,38.76294296]
[1742237566504,31.10854296,130.68,130.63,249.88635267]
[1742237566685,31.10854296,130.68,130.63,248.48654296]
[1742237567706,38.76084296,130.68,130.63,248.48654296]
[1742237568196,31.10854296,130.69,130.64,31.10854296]
[1742237568786,0.03,130.7,130.64,31.10854296]
[1742237568989,31.13854296,130.7,130.64,31.10854296]
[1742237569386,31.10854296,130.69,130.64,31.10854296]
[1742237569587,0.03,130.7,130.63,236.516]
[1742237569588,31.10854296,130.68,130.63,248.48654296]
[1742237569898,38.76084296,130.68,130.63,248.48654296]
[1742237571190,38.76084296,130.68,130.63,241.30654296]
[1742237572215,38.76084296,130.68,130.63,38.82654296]
[1742237573008,31.10854296,130.66,130.63,0.063]
[1742237573195,19.43452745,130.67,130.63,0.063]
[1742237573505,19.43452745,130.67,130.63,7.7179]
[1742237573696,26.57452745,130.68,130.63,27.15242745]
[1742237573891,34.22702745,130.68,130.63,27.15242745]
[1742237574107,19.43452745,130.67,130.63,7.7182]
[1742237574290,14.7925,130.68,130.63,27.15272745]
[1742237574291,34.22702745,130.68,130.63,27.15272745]
[1742237574606,19.43452745,130.67,130.63,7.7182]
[1742237574808,34.22702745,130.68,130.63,7.7182]
[1742237575010,34.22702745,130.68,130.63,0.063]
[1742237575309,19.43452745,130.67,130.63,0.063]
[1742237577314,7.6534,130.66,130.63,0.063]
[1742237578014,27.08792745,130.66,130.63,0.063]
[1742237578213,19.43452745,130.64,130.63,0.063]
[1742237579317,27.08912745,130.64,130.63,0.063]
[1742237579690,28.74842745,130.64,130.63,0.063]
[1742237580209,29.31707373,130.64,130.63,0.063]
[1742237581506,7.1,130.61,130.55,19.43452745]
[1742237581817,19.43452745,130.6,130.55,19.43452745]
[1742237583713,27.09172745,130.6,130.55,27.09432745]
[1742237584016,19.43452745,130.6,130.55,27.09432745]
[1742237585119,7.1,130.61,130.56,19.43452745]
[1742237585426,19.43452745,130.63,130.58,19.43452745]
[1742237585634,19.43452745,130.63,130.59,7.6575]
[1742237588823,7.08,130.64,130.6,19.43452745]
[1742237588997,19.43452745,130.66,130.61,19.43452745]
[1742237589400,19.43452745,130.67,130.62,19.43452745]
[1742237589631,26.11442745,130.68,130.63,19.43452745]
[1742237589823,33.19442745,130.68,130.63,19.43452745]
[1742237590026,33.19442745,130.68,130.64,7.6546]
[1742237590726,13.7599,130.68,130.64,7.6546]
[1742237590938,33.19442745,130.68,130.64,7.6546]
[1742237591107,13.7599,130.68,130.64,7.6546]
[1742237591446,0.03,130.68,130.65,19.43452745]
[1742237591722,0.03,130.68,130.66,19.43452745]
[1742237592238,0.03,130.68,130.67,7.6528]
[1742237592407,0.03,130.68,130.67,27.08732745]
[1742237592930,0.03,130.68,130.66,27.08782745]
[1742237593107,0.03,130.68,130.64,457.16]
[1742237593307,0.03,130.68,130.64,26.49452745]
[1742237593527,0.03,130.68,130.65,19.43452745]
[1742237594434,19.46452745,130.68,130.64,7.06]
[1742237594726,19.46452745,130.68,130.63,19.43452745]
[1742237595031,19.43452745,130.67,130.62,165.19012745]
[1742237595228,19.43452745,130.67,130.63,19.43452745]
[1742237595431,0.03,130.68,130.64,19.43452745]
[1742237596014,0.03,130.68,130.64,27.08892745]
[1742237596734,0.03,130.68,130.64,19.43452745]
[1742237597032,19.46452745,130.68,130.63,27.08942745]
[1742237597411,19.46452745,130.68,130.63,19.43452745]
[1742237597612,19.46452745,130.68,130.62,19.43452745]
[1742237597613,19.43452745,130.67,130.62,19.43452745]
[1742237598129,27.08742745,130.67,130.62,19.43452745]
[1742237598919,7.6529,130.67,130.63,19.43452745]
[1742237599229,27.11702745,130.68,130.63,19.43452745]
[1742237599624,0.03,130.68,130.64,19.43452745]
[1742237600134,0.03,130.68,130.65,19.43452745]
[1742237600336,0.03,130.68,130.66,7.6534]
[1742237600720,0.03,130.68,130.65,27.08832745]
[1742237601037,0.03,130.68,130.66,19.43452745]
[1742237601528,0.03,130.68,130.65,34.12832745]
[1742237601735,0.03,130.68,130.65,26.47452745]
[1742237601937,0.03,130.68,130.65,34.12852745]
[1742237602137,0.03,130.68,130.65,26.47452745]
[1742237602719,0.03,130.68,130.65,34.12852745]
[1742237603625,0.03,130.68,130.66,19.43452745]
[1742237604330,0.03,130.68,130.66,27.08762745]
[1742237606245,0.03,130.68,130.67,18.64964886]
[1742237606449,0.03,130.68,130.67,45.73697631]
[1742237608144,0.03,130.7,130.67,45.73697631]
[1742237608318,0.03,130.7,130.69,18.64964886]
[1742237608524,0.03,130.7,130.69,26.30124886]
[1742237609729,0.03,130.7,130.69,52.73577631]
[1742237611250,0.03,130.7,130.69,14.6516]
[1742237611448,0.03,130.7,130.69,34.08612745]
[1742237612033,0.03,130.7,130.69,346.08612745]
[1742237612744,0.03,130.7,130.69,7.0]
[1742237613550,0.03,130.7,130.68,145.7521]
[1742237613738,0.03,130.7,130.68,138.1]
[1742237614140,0.03,130.7,130.68,145.7522]
[1742237615232,0.03,130.7,130.67,19.43452745]
[1742237615552,0.03,130.7,130.67,7.04]
[1742237616671,0.03,130.7,130.68,0.063]
[1742237622141,19.43452745,130.69,130.68,0.063]
[1742237623258,27.08612745,130.69,130.68,0.063]
[1742237623835,46.5206549,130.69,130.68,0.063]
[1742237624035,65.93417804,130.69,130.62,0.063]
[1742237624257,19.43452745,130.64,130.62,0.063]
[1742237625154,19.43452745,130.63,130.62,0.063]
[1742237625356,27.08972745,130.63,130.62,0.063]
[1742237626360,27.37405059,130.63,130.62,0.063]
[1742237626837,47.09290118,130.63,130.62,0.063]
[1742237628248,20.0,130.6,130.55,0.063]
[1742237628458,19.43452745,130.58,130.55,0.063]
[1742237629233,7.0,130.6,130.55,0.063]
[1742237629443,19.43452745,130.56,130.55,0.063]
[1742237632542,7.9362,130.58,130.55,0.063]
[1742237632742,19.43452745,130.58,130.55,0.063]
[1742237632950,19.43452745,130.59,130.55,0.063]
[1742237634169,19.43452745,130.58,130.55,0.063]
[1742237635267,19.43452745,130.59,130.55,0.063]
[1742237635472,26.45452745,130.6,130.55,19.49752745]
[1742237635666,7.02,130.6,130.56,19.43452745]
[1742237635873,19.43452745,130.61,130.56,19.43452745]
[1742237636046,6.1143,130.64,130.55,19.49752745]
[1742237636250,19.43452745,130.62,130.56,7.02]
[1742237636469,19.43452745,130.62,130.57,19.43452745]
[1742237636667,19.43452745,130.61,130.56,26.45452745]
[1742237637062,19.43452745,130.63,130.58,19.43452745]
[1742237637450,19.43452745,130.62,130.58,7.6576]
[1742237637662,19.43452745,130.61,130.57,7.6585]
[1742237637851,19.43452745,130.62,130.57,27.09302745]
[1742237638060,19.43452745,130.63,130.58,19.43452745]
[1742237638260,19.43452745,130.62,130.57,27.09302745]
[1742237638866,19.43452745,130.61,130.56,34.11362745]
[1742237639452,19.43452745,130.6,130.56,27.09362745]
[1742237639773,19.43452745,130.6,130.56,7.6591]
[1742237640152,19.43452745,130.6,130.55,27.15722745]
[1742237640874,19.43452745,130.6,130.56,0.063]
[1742237641663,27.09142745,130.6,130.56,0.063]
[1742237643382,19.43452745,130.59,130.56,0.063]
[1742237643957,19.43452745,130.6,130.56,0.063]
[1742237644188,19.43452745,130.59,130.56,0.063]
[1742237645271,27.09202745,130.59,130.56,0.063]
[1742237645458,19.43452745,130.58,130.56,0.063]
[1742237646160,19.43452745,130.59,130.56,0.063]
[1742237648786,19.43452745,130.6,130.56,0.063]
[1742237648983,19.43452745,130.61,130.56,19.49752745]
[1742237649159,19.43452745,130.62,130.57,19.43452745]
[1742237649889,19.43452745,130.6,130.56,0.063]
[1742237650179,39.43452745,130.59,130.56,0.063]
[1742237650479,19.43452745,130.6,130.56,0.063]
[1742237651583,19.43452745,130.62,130.57,19.43452745]
[1742237652877,19.43452745,130.61,130.56,38.14717631]
[1742237653989,19.43452745,130.61,130.56,45.80597631]
[1742237655582,27.09102745,130.61,130.56,45.80597631]
[1742237655785,27.09102745,130.61,130.56,0.063]
[1742237655786,19.43452745,130.57,130.56,0.063]
[1742237655969,26.45452745,130.57,130.56,0.063]
[1742237656163,34.25538902,130.57,130.56,0.063]
[1742237656570,34.11322745,130.57,130.56,0.063]
[1742237656983,34.25538902,130.57,130.56,0.063]
[1742237657692,20.0,130.54,130.52,0.063]
[1742237657876,26.45452745,130.53,130.52,0.063]
[1742237658374,34.11552745,130.53,130.52,0.063]
[1742237658882,34.25768902,130.53,130.52,0.063]
[1742237659073,53.41028902,130.53,130.49,0.063]
[1742237659491,19.43452745,130.5,130.49,0.063]
[1742237662071,7.02,130.6,130.5,18.64964886]
[1742237662388,19.43452745,130.57,130.53,18.64964886]
[1742237662605,19.43452745,130.57,130.53,26.31054886]
[1742237662901,19.43452745,130.58,130.53,45.74507631]
[1742237663109,19.43452745,130.57,130.53,18.64964886]
[1742237663391,19.43452745,130.56,130.53,18.64964886]
[1742237663591,19.43452745,130.55,130.52,18.64964886]
[1742237664194,19.43452745,130.54,130.52,18.64964886]
[1742237664584,19.43452745,130.54,130.52,7.6615]
[1742237664771,19.43452745,130.55,130.52,7.6615]
[1742237664973,19.43452745,130.57,130.52,7.6615]
[1742237665173,19.43452745,130.56,130.52,7.6615]
[1742237666383,19.43452745,130.56,130.52,7.6915]
[1742237666691,19.49752745,130.56,130.52,7.6915]
[1742237668981,19.43452745,130.55,130.52,7.6915]
[1742237670201,19.43452745,130.55,130.52,0.03]
[1742237670379,19.43452745,130.54,130.52,0.03]
[1742237671980,0.063,130.56,130.52,0.03]
[1742237672296,19.49752745,130.56,130.52,7.6916]
[1742237672674,19.43452745,130.55,130.52,7.6916]
[1742237674180,19.43452745,130.55,130.52,0.03]
[1742237674398,19.43452745,130.53,130.52,0.03]
[1742237674698,19.57668902,130.53,130.49,0.063]
[1742237674881,19.43452745,130.5,130.49,0.063]
[1742237675203,26.45452745,130.5,130.49,0.063]
[1742237676174,34.11732745,130.5,130.49,0.063]
[1742237680510,53.5518549,130.5,130.49,0.063]
[1742237681393,53.69401647,130.5,130.48,0.063]
[1742237681598,20.0,130.46,130.42,6.5241]
[1742237681834,19.43452745,130.43,130.42,6.5241]
[1742237682317,19.43452745,130.43,130.42,0.063]
[1742237682720,27.10142745,130.43,130.42,0.063]
[1742237682922,19.43452745,130.43,130.42,0.063]
[1742237683096,27.10142745,130.43,130.42,0.063]
[1742237683706,20.0,130.4,130.38,0.063]
[1742237683935,26.45452745,130.39,130.38,0.063]
[1742237685515,7.02,130.39,130.38,0.063]
[1742237685716,26.45452745,130.39,130.38,0.063]
[1742237686299,19.43452745,130.39,130.38,0.063]
[1742237687219,27.10372745,130.39,130.38,0.063]
[1742237687431,19.43452745,130.39,130.38,0.063]
[1742237687636,39.43452745,130.37,130.36,0.063]
[1742237688956,39.57668902,130.37,130.33,0.063]
[1742237689267,34.12552745,130.36,130.33,0.063]
[1742237689427,26.45452745,130.36,130.33,0.063]
[1742237691141,34.12552745,130.36,130.33,0.063]
[1742237691344,20.0,130.34,130.33,0.063]
[1742237691546,39.43452745,130.34,130.33,0.063]
[1742237691750,58.8690549,130.34,130.33,0.063]
[1742237692050,39.43452745,130.34,130.33,0.063]
[1742237692949,58.8690549,130.34,130.33,0.063]
[1742237693147,58.8690549,130.34,130.31,0.063]
[1742237693148,94.32723961,130.34,130.31,0.063]
[1742237693329,19.43452745,130.32,130.31,0.063]
[1742237693528,26.45452745,130.32,130.31,0.063]
[1742237694344,7.02,130.32,130.31,0.063]
[1742237694543,19.43452745,130.32,130.31,0.063]
[1742237697841,20.0,130.36,130.31,0.063]
[1742237698151,19.43452745,130.36,130.31,19.49752745]
[1742237699052,19.43452745,130.36,130.32,7.6734]
[1742237699847,26.45452745,130.37,130.32,27.10792745]
[1742237700048,19.43452745,130.36,130.32,7.6734]
[1742237700357,19.43452745,130.35,130.31,7.7368]
[1742237700655,19.43452745,130.35,130.32,18.64964886]
[1742237701052,19.43452745,130.35,130.32,26.32294886]
[1742237701355,19.43452745,130.35,130.32,18.64964886]
[1742237701958,19.43452745,130.35,130.32,26.32294886]
[1742237702446,7.02,130.37,130.32,26.32294886]
[1742237702635,19.43452745,130.36,130.32,26.32294886]
[1742237703636,20.0,130.35,130.32,26.32294886]
[1742237704262,39.43452745,130.35,130.31,7.7368]
[1742237704841,20.0,130.35,130.32,18.64964886]
[1742237705356,20.0,130.35,130.33,7.6728]
[1742237706633,20.0,130.35,130.32,26.32274886]
[1742237707039,39.43452745,130.35,130.32,26.32274886]
[1742237707358,20.0,130.35,130.32,26.32274886]
[1742237709541,19.43452745,130.37,130.32,45.75727631]
[1742237711575,27.10512745,130.37,130.32,26.32274886]
[1742237711778,19.43452745,130.36,130.32,26.32274886]
[1742237711978,19.43452745,130.37,130.32,45.75727631]
[1742237712671,19.43452745,130.37,130.32,7.6731]
[1742237712976,19.43452745,130.37,130.33,18.64964886]
[1742237713347,19.43452745,130.36,130.33,18.64964886]
[1742237713955,19.43452745,130.35,130.32,18.64964886]
[1742237715670,19.43452745,130.35,130.32,26.32294886]
[1742237715851,39.43452745,130.36,130.32,26.32294886]
[1742237716642,20.063,130.37,130.32,45.75747631]
[1742237716843,39.49752745,130.37,130.32,45.75747631]
[1742237717048,20.063,130.37,130.34,18.64964886]
[1742237717348,20.063,130.37,130.35,7.6716]
[1742237720067,39.49752745,130.37,130.33,26.32224886]
[1742237720271,0.063,130.37,130.33,26.32224886]
[1742237720452,0.063,130.37,130.33,64.93877631]
[1742237720970,0.063,130.37,130.35,38.08417631]
[1742237721359,0.063,130.37,130.36,7.671]
[1742237721753,0.063,130.37,130.36,45.75517631]
[1742237722362,0.063,130.37,130.36,45.89733788]
[1742237722889,0.063,130.37,130.36,183.99733788]
[1742237723179,0.063,130.37,130.36,495.99733788]
[1742237723479,0.063,130.37,130.36,358.32382259]
[1742237723683,0.0001,130.37,130.36,359.72653157]
[1742237724882,0.0001,130.37,130.36,20.05235784]
[1742237725063,0.0001,130.37,130.36,18.64964886]
[1742237726983,0.0001,130.37,130.36,38.08417631]
[1742237727482,0.0001,130.37,130.36,18.64964886]
[1742237727984,0.0001,130.37,130.36,45.75517631]
[1742237728286,0.0001,130.37,130.36,38.08417631]
[1742237729473,0.0001,130.37,130.36,45.75517631]
[1742237730781,0.0001,130.37,130.36,18.64964886]
[1742237732366,0.0001,130.37,130.36,26.32064886]
[1742237732556,0.0001,130.37,130.36,18.64964886]
[1742237734290,25.52956978,130.4,130.36,18.64964886]
[1742237735088,25.52956978,130.4,130.36,26.32054886]
[1742237736197,19.43452745,130.4,130.36,26.32054886]
[1742237736870,19.43452745,130.4,130.36,18.64964886]
[1742237738186,27.10322745,130.4,130.36,18.64964886]
[1742237738896,19.43452745,130.38,130.34,145.12]
[1742237739185,19.43452745,130.35,130.33,18.67964886]
[1742237741185,19.43452745,130.36,130.33,18.67964886]
[1742237741380,19.43452745,130.35,130.33,18.67964886]
[1742237741587,19.43452745,130.34,130.33,0.03]
[1742237742388,19.43452745,130.35,130.33,0.03]
[1742237744879,7.6707,130.37,130.33,0.03]
[1742237745178,19.43452745,130.35,130.33,0.03]
[1742237745690,7.6707,130.37,130.33,0.03]
[1742237745891,7.6701,130.38,130.33,0.03]
[1742237746098,19.43452745,130.36,130.33,0.03]
[1742237747698,19.43452745,130.35,130.33,0.03]
[1742237748074,19.43452745,130.34,130.33,0.03]
[1742237749188,27.10672745,130.34,130.33,0.03]
[1742237751209,19.43452745,130.34,130.33,0.03]
[1742237751594,27.10672745,130.34,130.33,0.03]
[1742237752698,19.43452745,130.34,130.33,0.03]
[1742237753005,27.10672745,130.34,130.33,0.03]
[1742237755214,20.17270305,130.34,130.33,0.03]
[1742237758390,70.60119996,130.34,130.33,0.03]
[1742237758588,72.39766153,130.34,130.33,0.03]
[1742237758785,22.25348776,130.34,130.33,0.03]
[1742237759502,21.82700305,130.34,130.33,0.03]
[1742237760317,22.25348776,130.34,130.33,0.03]
[1742237763412,12.50050305,130.36,130.33,0.03]
[1742237763604,12.56350305,130.37,130.33,0.03]
[1742237765413,0.063,130.37,130.36,12.50050305]
[1742237765792,0.0001,130.37,130.36,183.98175191]
[1742237765997,0.0001,130.37,130.33,34.60380171]
[1742237766209,0.0001,130.37,130.33,7.7028]
[1742237766419,12.50050305,130.36,130.33,7.7028]
[1742237766802,12.50060305,130.37,130.33,7.7028]
[1742237767003,12.50060305,130.37,130.33,0.03]
[1742237767400,12.50050305,130.36,130.33,0.03]
[1742237767616,12.50050305,130.35,130.33,0.03]
[1742237768118,12.50050305,130.36,130.33,0.03]
[1742237771720,12.50050305,130.34,130.33,0.03]
[1742237772127,20.17270305,130.34,130.33,0.03]
[1742237773518,20.17270305,130.34,130.28,30.80615191]
[1742237773821,12.50050305,130.33,130.28,30.80615191]
[1742237774422,12.50050305,130.32,130.27,0.063]
[1742237774723,12.50050305,130.31,130.27,0.063]
[1742237775835,7.6745,130.3,130.27,0.063]
[1742237776729,20.17470305,130.31,130.27,0.063]
[1742237777112,12.50050305,130.31,130.27,0.063]
[1742237779331,20.17450305,130.31,130.27,0.063]
[1742237779908,12.50050305,130.29,130.27,0.063]
[1742237782617,32.50050305,130.28,130.27,0.063]
[1742237783419,47.19620305,130.28,130.27,0.063]
[1742237783618,39.52050305,130.28,130.27,0.063]
[1742237783931,27.02,130.28,130.27,0.063]
[1742237785216,20.0,130.28,130.27,0.063]
[1742237786027,19.52050305,130.32,130.27,0.063]
[1742237786533,19.52050305,130.32,130.27,12.56350305]
[1742237786914,19.52050305,130.33,130.28,12.50050305]
[1742237787118,0.063,130.31,130.29,7.6751]
[1742237787715,0.063,130.31,130.27,12.56350305]
[1742237788531,0.063,130.31,130.27,20.23960305]
[1742237789224,20.063,130.31,130.27,20.23960305]
[1742237789433,0.063,130.31,130.27,12.56350305]
[1742237790119,32.56350305,130.31,130.27,18.71264886]
[1742237791444,20.063,130.31,130.27,31.21315191]
[1742237795536,27.7371,130.31,130.27,31.21315191]
[1742237795839,27.7371,130.31,130.27,18.71264886]
[1742237796042,12.50050305,130.29,130.27,0.063]
[1742237796346,12.50050305,130.28,130.27,0.063]
[1742237797024,12.92698776,130.28,130.27,0.063]
[1742237797333,13.06914933,130.28,130.27,0.0001]
[1742237797533,20.74484933,130.28,130.27,0.0001]
[1742237797837,70.74686153,130.28,130.27,0.0001]
[1742237798336,20.74484933,130.28,130.27,0.0001]
[1742237799450,70.74686153,130.28,130.27,0.0001]
[1742237800324,12.50050305,130.23,130.22,0.063]
[1742237801742,19.52050305,130.24,130.22,0.063]
[1742237802451,7.02,130.24,130.22,0.063]
[1742237802737,20.0,130.25,130.22,0.063]
[1742237802945,12.50050305,130.27,130.22,12.56350305]
[1742237803559,12.50050305,130.26,130.22,18.71264886]
[1742237803855,12.50050305,130.26,130.22,0.063]
[1742237804047,12.50050305,130.26,130.22,18.71264886]
[1742237805648,12.50050305,130.26,130.22,26.39184886]
[1742237805833,12.50050305,130.29,130.24,12.50050305]
[1742237807238,12.50050305,130.29,130.24,14.10960305]
[1742237807551,12.50050305,130.3,130.24,14.10960305]
[1742237807738,12.50050305,130.29,130.24,14.10960305]
[1742237808242,12.50050305,130.28,130.24,1.6091]
[1742237808425,12.50050305,130.28,130.24,9.2871]
[1742237809048,12.50050305,130.29,130.24,21.78760305]
[1742237810059,12.50050305,130.3,130.25,31.15015191]
[1742237811753,0.063,130.28,130.26,7.6769]
[1742237812457,0.063,130.28,130.25,26.32684886]
[1742237812755,0.063,130.28,130.25,18.64964886]
[1742237813054,12.50050305,130.27,130.24,18.67964886]
[1742237813259,12.50050305,130.27,130.24,0.03]
[1742237813636,12.50050305,130.26,130.24,0.03]